Cogmind - Beta 12 @@@ ROGUE MODE // 2023.05.29 @ 22:43:59 Player: Mr Goldstein Result: Self-destructed Performance ------------- Evolutions (1) 500 Regions Visited (3) 600 Robots Destroyed (6) 30 Value Destroyed (120) 120 Prototype IDs (0) 0 Alien Tech Used (0) 0 Bonus (200) 200 TOTAL SCORE: 1450 Bonus ------- Pacifist 200 Cogmind --------- Core Integrity 97/400 Matter 300/300 Energy 99/100 System Corruption 0% Temperature Cool (0) Movement Core (50) Location -9/Mines Parts ------- > --- POWER (1) -------- (None) > --- PROPULSION (3) --- (None) > --- UTILITY (3) ------ (None) > --- WEAPON (2) ------- (None) > --- INVENTORY (5) ---- Grenade Launcher Peak State ------------ > --- POWER ------------ (None) > --- PROPULSION ------- (None) > --- UTILITY ---------- (None) > --- WEAPON ----------- Grenade Launcher > --- INVENTORY -------- (None) [Rating: 1] Favorites ----------- Power None Propulsion None Utility None Weapon Grenade Launcher Launcher Grenade Launcher Build | -11 -10 -9 -9 ------- Run | Jun Mat Mat Min Slots Evolved 2 | . . 2 . Power . | . . . . Propulsion 1 | . . 1 . Utility 1 | . . 1 . Weapon . | . . . . Parts Attached 1 | . . . 1 Power . | . . . . Engine . | . . . . Core . | . . . . Reactor . | . . . . Propulsion . | . . . . Treads . | . . . . Leg . | . . . . Wheel . | . . . . Hover . | . . . . Flight . | . . . . Utility . | . . . . Device . | . . . . Storage . | . . . . Processor . | . . . . Hackware . | . . . . Protection . | . . . . Artifact . | . . . . Weapon 1 | . . . 1 Energy Gun . | . . . . Energy Cannon . | . . . . Ballistic Gun . | . . . . Ballistic Cannon . | . . . . Launcher 1 | . . . 1 Special Weapon . | . . . . Impact Weapon . | . . . . Slashing Weapon . | . . . . Piercing Weapon . | . . . . Special Melee Weapon . | . . . . Unidentified Prototypes . | . . . . Parts Lost . | . . . . Power . | . . . . Propulsion . | . . . . Utility . | . . . . Weapon . | . . . . Highest Loss Streak . | . . . . To Critical Strikes . | . . . . Average Slot Usage (%) . | . . . . Naked Turns 198 | . 23 42 133 Heaviest Build . | . . . . Greatest Support 3 | 3 3 3 3 Greatest Overweight (x) . | . . . . Average Overweight (x) . | . . . . Largest Inventory Capacity 5 | 5 5 5 5 Average Capacity 5 | 5 5 5 5 Most Carried 1 | . . . 1 Average Carried . | . . . . Final Capacity 5 | 5 5 5 5 Final Carried 1 | . . . 1 Class Distribution -------------------- 100% | Mutant Dominant Class ---------------- Mutant | -10/Materials Mutant | -9/Materials Mutant | -9/Mines Resources | -11 -10 -9 -9 ----------- Run | Jun Mat Mat Min Matter Collected 230 | 186 . . 44 Remotely . | . . . . Salvage Created 93 | . . . 93 Parts 15 | . . . 15 Haulers Intercepted . | . . . . Recyclers Shooed 1 | . . . 1 Parts Field Recycled . | . . . . Retrieved Matter . | . . . . Parts Self-Destructed . | . . . . Prevented . | . . . . Kills | -11 -10 -9 -9 ------- Run | Jun Mat Mat Min Combat Hostiles Destroyed 4 | . . . 4 Melee 1 | . . . 1 AOE 3 | . . . 3 Classes Destroyed 4 | . . . 4 Worker 1 | . . . 1 Tunneler 1 | . . . 1 Swarmer 1 | . . . 1 Grunt 3 | . . . 3 Best Kill Streak 4 | . . . 4 Combat Bots Only 3 | . . . 3 Max Kills in Single Turn 3 | . . . 3 Gunslinging . | . . . . Exploded 2 | . . . 2 Melee 1 | . . . 1 Uniques/NPCs Destroyed . | . . . . Combat | -11 -10 -9 -9 -------- Run | Jun Mat Mat Min Damage Taken 391 | . 78 134 179 Core 381 | . 78 134 169 Absorbed by Shields . | . . . . Core Remaining (%) 84 | 100 68 . . Volleys Fired 4 | . . . 4 Largest 1 | . . . 1 Hottest 30 | . . . 30 Shots Fired 4 | . . . 4 Gun . | . . . . Cannon . | . . . . Launcher 4 | . . . 4 Special . | . . . . Kinetic . | . . . . Thermal . | . . . . Explosive 4 | . . . 4 Electromagnetic . | . . . . Robot Hit Streak 3 | . . . 3 Robot Miss Streak . | . . . . Penetration Max . | . . . . Secondary Targets . | . . . . Shots Hit Robots 3 | . . . 3 Core Hits 10 | . . . 10 Critical Kills . | . . . . Critical Parts Destroyed . | . . . . Critical Strikes . | . . . . Melee Attacks . | . . . . Impact . | . . . . Slashing . | . . . . Piercing . | . . . . Sneak Attacks . | . . . . Combat Hostiles . | . . . . Follow-up Attacks . | . . . . Damage Inflicted 452 | . 11 . 441 Guns . | . . . . Cannons . | . . . . Explosions 363 | . . . 363 Melee . | . . . . Ramming 89 | . 11 . 78 Kinetic . | . . . . Thermal . | . . . . Explosive 363 | . . . 363 Electromagnetic . | . . . . Impact . | . . . . Slashing . | . . . . Piercing . | . . . . Highest Corruption . | . . . . Average Corruption . | . . . . Corruption Purged . | . . . . Corruption Blocked . | . . . . Overload Shots . | . . . . Overflow Damage . | . . . . Projectiles . | . . . . Explosions . | . . . . Melee . | . . . . Knockbacks 2 | . 1 . 1 Impact 2 | . 1 . 1 Kinetic . | . . . . Secondary . | . . . . Self-Inflicted Damage 41 | . 5 . 36 Shots . | . . . . Rammed 15 | . 3 . 12 Targets Rammed 15 | . 3 . 12 Kicked . | . . . . Crushed . | . . . . Highest Temperature . | . . . . Average Temperature . | . . . . Received Heat Transfer 117 | . 9 72 36 Siege Activations . | . . . . Robots Corrupted . | . . . . Combat Hostiles . | . . . . Parts Fried . | . . . . Impact Corruptions . | . . . . Robots Melted . | . . . . Combat Hostiles . | . . . . Parts Melted . | . . . . Heat Transferred . | . . . . Parts Sabotaged . | . . . . Parts Stolen . | . . . . Parts Stripped . | . . . . Power Chain Reactions . | . . . . Missiles Intercepted . | . . . . Alert | -11 -10 -9 -9 ------- Run | Jun Mat Mat Min Peak Influence 163 | . . 60 163 Initial 23 | . . . 23 Average 54 | . . 35 73 Maximum Alert Level . | . . . . Low Security (%) 100 | 100 100 100 100 Level 1 . | . . . . Level 2 . | . . . . Level 3 . | . . . . Level 4 . | . . . . Level 5 . | . . . . High Security . | . . . . Max Security . | . . . . Squads Dispatched 1 | . . 1 . Investigation 1 | . . 1 . Extermination . | . . . . Reinforcement . | . . . . Assault . | . . . . Garrison . | . . . . Intercept . | . . . . Searches Triggered . | . . . . Construction Impeded . | . . . . Haulers Reinforced . | . . . . Active Scanning Responses . | . . . . Cargo Convoy Interrupts . | . . . . Stealth | -11 -10 -9 -9 --------- Run | Jun Mat Mat Min Distress Signals 1 | . . 1 . Communications Jammed . | . . . . Distress Signals . | . . . . Times Spotted 27 | . 5 10 12 Peak Tracking Total 10 | . 5 10 6 Tactical Retreats 1 | . . . 1 Traps | -11 -10 -9 -9 ------- Run | Jun Mat Mat Min Traps Triggered . | . . . . Indirectly . | . . . . Trap Hack Attempts . | . . . . Triggered . | . . . . Disarmed . | . . . . Reprogrammed . | . . . . Reused . | . . . . Traps Extracted . | . . . . Installed . | . . . . Triggered . | . . . . Machines | -11 -10 -9 -9 ---------- Run | Jun Mat Mat Min Machines Disabled . | . . . . Max in Single Turn . | . . . . Machines Repaired . | . . . . Machines Sabotaged . | . . . . Overloaded Fab Kills . | . . . . Hacking | -11 -10 -9 -9 --------- Run | Jun Mat Mat Min Machines Accessed 1 | . . 1 . Terminals 1 | . . 1 . Fabricators . | . . . . Repair Stations . | . . . . Recycling Units . | . . . . Scanalyzers . | . . . . Garrison Access . | . . . . Total Hacks 2 | . . 2 . Successful . | . . . . Failed 2 | . . 2 . Catastrophic 2 | . . 2 . Database Lockouts . | . . . . Manual . | . . . . Terminals 2 | . . 2 . Fabricators . | . . . . Repair Stations . | . . . . Recycling Units . | . . . . Scanalyzers . | . . . . Garrison Access . | . . . . Terminal Hacks . | . . . . Fabricator Hacks . | . . . . Repair Station Hacks . | . . . . Recycling Unit Hacks . | . . . . Scanalyzer . | . . . . Garrison Access Hacks . | . . . . Unauthorized Hacks . | . . . . Terminals . | . . . . Fabricators . | . . . . Repair Stations . | . . . . Recycling Units . | . . . . Scanalyzers . | . . . . Garrison Access . | . . . . Data Cores Recovered . | . . . . Used . | . . . . Hacking Detections 1 | . . 1 . Full Trace Events 1 | . . 1 . Feedback Events . | . . . . Feedback Blocked . | . . . . Robot Schematics Acquired . | . . . . Robots Built . | . . . . Authchips . | . . . . Time . | . . . . Total Robot Build Rating . | . . . . Part Schematics Acquired . | . . . . Parts Built . | . . . . Authchips . | . . . . Time . | . . . . Total Part Build Rating . | . . . . Parts Repaired . | . . . . Time . | . . . . Parts Recycled . | . . . . Recycled Matter . | . . . . Retrieved Matter . | . . . . Retrieved Components . | . . . . Parts Scanalyzed . | . . . . Part Schematics Acquired . | . . . . Parts Damaged . | . . . . Bothacking | -11 -10 -9 -9 ------------ Run | Jun Mat Mat Min Used RIF Installer . | . . . . Robots Hacked . | . . . . Non-combat . | . . . . Combat . | . . . . Robot Hacks Applied . | . . . . Relay Couplers Released . | . . . . Fabnet Peak Effective % . | . . . . Robots Rewired . | . . . . Allies Hacked . | . . . . Hacks Repelled . | . . . . Allies | -11 -10 -9 -9 -------- Run | Jun Mat Mat Min Total Allies . | . . . . Largest Group . | . . . . Highest-Rated Group . | . . . . Highest-Rated Ally . | . . . . Total Orders . | . . . . Ally Attacks . | . . . . Total Damage . | . . . . Kills . | . . . . Allies Corrupted . | . . . . Allies Melted . | . . . . Intel | -11 -10 -9 -9 ------- Run | Jun Mat Mat Min Robot Analysis Total . | . . . . Derelict Logs Recovered 1 | . . . 1 Drone Launches . | . . . . Drone Recoveries . | . . . . Exploration | -11 -10 -9 -9 ------------- Run | Jun Mat Mat Min Turns Passed 219 | 12 23 42 142 Spaces Moved 386 | 25 40 83 238 Core 386 | 25 40 83 238 Treads . | . . . . Legs . | . . . . Wheels . | . . . . Hover . | . . . . Flight . | . . . . Fastest Speed 50 | 50 50 50 50 Average Speed 50 | 50 50 50 50 Slowest Speed 50 | 50 50 50 50 Overloaded Moves . | . . . . Propulsion Burnouts . | . . . . Robots Hopped . | . . . . Cave-ins Triggered . | . . . . Exploration Rate (%) 23 | 3 20 19 51 Regions Visited 3 Branch Regions 1 Pre-discovered Areas . | . . . . Known Exits Taken . | . . . . Unknown Exits Taken 3 | 1 1 1 . Scrap Searched 1 | . . . 1 Spaces Dug 9 | . . . 9 Terrain Destroyed 23 | . . . 23 Melee . | . . . . Projectile . | . . . . AOE 23 | . . . 23 Terrain Rammed . | . . . . Walls Destroyed . | . . . . Machines Disabled . | . . . . Actions | -11 -10 -9 -9 --------- Run | Jun Mat Mat Min Total 405 | 24 42 82 257 Wait . | . . . . Move 383 | 24 39 82 238 Hop . | . . . . Pick Up 1 | . . . 1 Fast Attach . | . . . . Attach 1 | . . . 1 Detach 1 | . . . 1 Swap . | . . . . Drop . | . . . . Fire 4 | . . . 4 Melee . | . . . . Ram 15 | . 3 . 12 Kick . | . . . . Crush . | . . . . Escape Stasis . | . . . . Rewire . | . . . . Trap . | . . . . Miscellaneous . | . . . . Route ------- -11/Junkyard -10/Materials -9/Materials -9/Mines (discovered 2 exits: [*Mat x2]) History --------- Turn | Location | Event 3 | -11/Junkyard | Discovered new exit (range 15) 13 | -11/Junkyard | Entered Materials 32 | -10/Materials | Discovered new exit (range 11) 36 | -10/Materials | Entered another Materials area 36 | -9/Materials | Evolved 2 slots: Propulsion x1, Utility x1 74 | -9/Materials | Discovered new exit (range 8) 78 | -9/Materials | Entered Mines 124 | -9/Mines | Learned 2 Materials zone layouts 127 | -9/Mines | Joined a pair of Derelicts in attacking an 0b10 outpost 139 | -9/Mines | Discovered new exit (range 7) 141 | -9/Mines | YI-UF0 nonchalantly dropped a Grenade Launcher on the ground 159 | -9/Mines | Excavation squad dispatched 159 | -9/Mines | A large section of the Mines collapsed 178 | -9/Mines | Core integrity fell below 50% 200 | -9/Mines | Discovered new exit (range 15) 220 | -9/Mines | Self-destructed Last Messages --------------- 00159_ ALERT: Suspicious cave-in, suspected derelict activity in mines. Dispatching escorted excavation squad. 00178_ G-34 Mercenary destroyed. 00178_ K-01 Serf destroyed. 00182_ G-34 Mercenary destroyed. 00183_ The unstable cave ceiling collapses. 00187_ Acquired 12 matter. 00192_ Searching scrap... 00192_ Found Cooling System. 00192_ Found Sml. Matter Pod. 00192_ Found Med. Matter Pod. 00192_ Found Terrain Scanner. 00192_ Found 19 Matter. 00193_ Acquired 19 matter. 00196_ Slammed into R-06 Scavenger. 00200_ EXIT=FOUND 00212_ Slammed into S-10 Pest. 00212_ S-10 Pest destroyed. 00213_ Acquired 8 matter. 00213_ Slammed into S-10 Pest. Map ----- +----------------------------------------------------+ | ????????????????????# #?? | | ????????????????????# #?? | | ????????????????????# ##?? | | ????????????????????## ##??? | | ?????????????????????## ##??? | | ??????????????????????## ##?? | | ???????????????????????### ##? | | ?????????????????????????## #? | | ?????????????????????????## < #? | | ????????????????????????## #? | | ???????????????????????## ##? | | ???????????????????????# ####?? | | #??????????????????????# #????? | | ##?????????????????????# #????? | | #?????????????????????### ##???? | | ##??????????????????????# #???? | | #??????????????????????### #???? | | #???????????????????????# #???? | | #??????????????????????#*#???? | | #?????????????????????#%#???? | | ?????????????????????#%#???? | | ??????????????????????#%#???? | | ???????????????????####s###?? | | ????????????????????# ss% #?? | | ????????????????????# #?? | | ?????????????????????#@ #?? | | ????????????????????????# """ #?? | | ????????????????????????# """ #?? | | ????????????????????????# """ #?? | | ????????????????????????########?? | | ?????????????????????????????????? | | ?????????????????????????????????? | | ?????????????????????????????????? | | ?????????????????????????????????? | | ?????????????????????????????????? | | ?????????????????????????????????? | | ?????????????????????????????????? | | ?????????????????????????????????? | | | | | | | | | | | | | | | | | | | | | | | | | +----------------------------------------------------+ Best States ------------- Heat Dissipation 28 Energy Generation 5 Energy Capacity 100 Matter Stores 300 Matter Capacity 300 Sight Range 16 Terrain Scan Density 10 Evasion (%) 50 Item Schematics ----------------- None Robot Schematics ------------------ None Fabricated ------------ Nothing Alien Tech Used ----------------- None Achievements -------------- None Challenges ------------ None Game ------ Seed WarpCoolingFlamer Manual? 0 Play Time 00:03:44 Cumulative 252.8 hours Start 2023.05.29 @ 22:41:46 End 2023.05.29 @ 22:43:59 Sessions 1 Manual Loads 0 Difficulty Rogue Special Mode None Game No. 754 Rogue 754 Adventurer 0 Explorer 0 Win Type - Total 12 Types 8/0/2/2/0/0/0/0/0 Lore% 87 Gallery% 84 Achievement% 75 Wizard Run 0 Options --------- ASCII 0 Keyboard 0 Movement Numpad Keybinds 0 Fullscreen 1 Font 16/SmallcapsGlow Map View 75x55 Tactical HUD 1 Map Filters NONE Filters NONE Steam 1 RUN: a3438899-5f26-4ca5-b354-b1e5ffaebf0d